Cogmind - Beta 16 @@@ ROGUE MODE // 2026.01.25 @ 11:25:16 Player: katharsis Result: Destroyed by Y-45 Defender with Heavy Assault Rifle Performance ------------- Evolutions (1) 500 Regions Visited (2) 400 Robots Destroyed (24) 120 Value Destroyed (423) 423 Prototype IDs (0) 0 Alien Tech Used (0) 0 Bonus (0) 0 TOTAL SCORE: 1443 Bonus ------- None Cogmind --------- Core Integrity 0/400 Matter 113/300 Energy 100/100 System Corruption 0% Temperature Cool (9) Movement Core (700) Ox13 Location -9/Materials Parts ------- > --- POWER (1) -------- (None) > --- PROPULSION (4) --- (None) > --- UTILITY (2) ------ High-capacity Storage Unit > --- WEAPON (2) ------- Mini Grenade Launcher > --- INVENTORY (20) --- Light Ion Engine High-capacity Storage Unit Peak State ------------ > --- POWER ------------ Ion Engine > --- PROPULSION ------- Aluminum Leg Aluminum Leg Improved Aluminum Leg > --- UTILITY ---------- Cooling System High-capacity Storage Unit > --- WEAPON ----------- Rocket Launcher Mini Grenade Launcher > --- INVENTORY -------- Ion Engine Light Ion Engine Wheel Wheel High-capacity Storage Unit Particle Gun Rocket Launcher Mini Grenade Launcher [Rating: 13] Favorites ----------- Power Ion Engine Engine Ion Engine Propulsion Aluminum Leg Leg Aluminum Leg Wheel Wheel Utility High-capacity Storage Unit Device Cooling System Storage High-capacity Storage Unit Weapon Light Assault Rifle Energy Gun Particle Gun Ballistic Gun Light Assault Rifle Launcher Rocket Launcher Build | -11 -10 -9 ------- Run | Yrd Mat Mat Slots Evolved 2 | . . 2 Power . | . . . Propulsion 2 | . . 2 Utility . | . . . Weapon . | . . . Parts Attached 19 | 8 2 9 Power 2 | 1 . 1 Engine 2 | 1 . 1 Core . | . . . Reactor . | . . . Propulsion 6 | 3 1 2 Treads . | . . . Leg 4 | 2 1 1 Wheel 2 | 1 . 1 Hover . | . . . Flight . | . . . Utility 4 | 2 1 1 Device 2 | 1 . 1 Storage 2 | 1 1 . Processor . | . . . Hackware . | . . . Protection . | . . . Artifact . | . . . Weapon 7 | 2 . 5 Energy Gun 1 | . . 1 Energy Cannon . | . . . Ballistic Gun 2 | 2 . . Ballistic Cannon . | . . . Launcher 4 | . . 4 Special Weapon . | . . . Impact Weapon . | . . . Slashing Weapon . | . . . Piercing Weapon . | . . . Special Melee Weapon . | . . . Unidentified Prototypes . | . . . Parts Lost 12 | . . 12 Power 2 | . . 2 Propulsion 5 | . . 5 Utility 1 | . . 1 Weapon 4 | . . 4 Highest Loss Streak 10 | . . 10 To Critical Strikes . | . . . Average Backups 5 | 2 5 6 Power 1 | . 1 1 Propulsion 1 | 1 2 1 Utility . | . . 1 Weapon . | . . 1 Tool/Special . | . . . Unused Backups 2 | . . 2 Power 1 | . . 1 Propulsion . | . . . Utility 1 | . . 1 Weapon . | . . . Tool/Special . | . . . Average Slot Usage (%) 76 | . 86 72 Engine 11 | . 12 10 Leg 21 | . 23 20 Device 9 | . 11 8 Storage 11 | . 14 11 Ballistic Gun 11 | . 23 6 Launcher 9 | . . 13 Peak Build Rating 13 | 9 9 13 Average Rating 8 | 5 7 9 On Entrance 4 | . 9 5 Avg Prop Armor Cover (%) 18 | . 18 . Naked Turns . | . . . Heaviest Build 52 | 13 48 52 Greatest Support 33 | 20 20 33 Greatest Overweight (x) 15 | . 15 14 Average Overweight (x) 1 | . 2 2 Largest Inventory Capacity 20 | 8 20 20 Average Capacity 18 | 7 18 20 Most Carried 8 | 3 6 8 Average Carried 5 | 2 5 6 Final Capacity 20 | 8 20 20 Final Carried 5 | 3 5 2 Class Distribution -------------------- 100% | Mutant Dominant Class ---------------- Mutant | -10/Materials Mutant | -9/Materials Resources | -11 -10 -9 ----------- Run | Yrd Mat Mat Matter Collected 472 | 233 65 174 Remotely . | . . . Salvage Created 429 | 27 102 300 Parts 44 | 5 6 33 Haulers Intercepted . | . . . Recyclers Shooed . | . . . Parts Field Recycled . | . . . Retrieved Matter . | . . . Parts Self-Destructed . | . . . Prevented . | . . . Parts Restored . | . . . Kills | -11 -10 -9 ------- Run | Yrd Mat Mat Combat Hostiles Destroyed 10 | . 1 9 Guns 1 | . 1 . AOE 9 | . . 9 Classes Destroyed 11 | 1 2 8 Worker 5 | . . 5 Builder 2 | . . 2 Tunneler 1 | 1 . . Recycler 2 | . 1 1 Mechanic 1 | . . 1 Operator 1 | . . 1 Watcher 2 | . . 2 Swarmer 4 | . . 4 Grunt 4 | . 1 3 Duelist 1 | . . 1 Sentry 1 | . . 1 Best Kill Streak 11 | 1 2 11 Combat Bots Only 4 | . 1 4 Max Kills in Single Turn 3 | 1 1 3 Gunslinging . | . . . Exploded 2 | . . 2 Melee . | . . . Uniques/NPCs Destroyed . | . . . Combat | -11 -10 -9 -------- Run | Yrd Mat Mat Hostile Shots Fired 116 | . 8 108 Missed 39 | . 4 35 Hits 77 | . 4 73 Melee 2 | . . 2 Projectile 75 | . 4 71 Critical Strikes 2 | . . 2 Damage Taken 1368 | . 38 1330 Core 411 | . . 411 Absorbed by Shields . | . . . Core Remaining (%) 100 | 100 100 . Volleys Fired 24 | 1 4 19 Largest 2 | 2 2 2 Hottest 95 | 40 40 95 Shots Fired 41 | 2 8 31 Gun 16 | 2 8 6 Cannon . | . . . Launcher 25 | . . 25 Special . | . . . Kinetic 13 | 2 8 3 Thermal 3 | . . 3 Explosive 25 | . . 25 Electromagnetic . | . . . Robot Hit Streak 9 | 2 6 9 Robot Miss Streak 2 | . . 2 Penetration Max . | . . . Secondary Targets . | . . . Shots Hit Robots 20 | 2 4 14 Core Hits 31 | 1 3 27 Critical Kills 2 | 1 1 . Critical Parts Destroyed . | . . . Critical Strikes 2 | 1 1 . Destroy 2 | 1 1 . Melee Attacks . | . . . Impact . | . . . Slashing . | . . . Piercing . | . . . Sneak Attacks . | . . . Combat Hostiles . | . . . Follow-up Attacks . | . . . Damage Inflicted 1706 | 19 29 1658 Guns 94 | 19 29 46 Cannons . | . . . Explosions 1612 | . . 1612 Melee . | . . . Ramming . | . . . Kinetic 62 | 19 29 14 Thermal 32 | . . 32 Explosive 1612 | . . 1612 Electromagnetic . | . . . Impact . | . . . Slashing . | . . . Piercing . | . . . Highest Corruption . | . . . Average Corruption . | . . . Corruption Purged . | . . . Corruption Blocked . | . . . Overload Shots . | . . . Overflow Damage 56 | . . 56 Projectiles . | . . . Explosions 56 | . . 56 Melee . | . . . Knockbacks . | . . . Impact . | . . . Kinetic . | . . . Secondary . | . . . Self-Inflicted Damage 366 | . . 366 Shots 12 | . . 12 Rammed . | . . . Targets Rammed . | . . . Kicked . | . . . Crushed . | . . . Highest Temperature 42 | . . 42 Average Temperature 12 | . . 12 Received Heat Transfer 267 | . 12 255 Siege Activations . | . . . Martial Activations . | . . . Shielding Activations . | . . . Robots Disrupted . | . . . Combat Hostiles . | . . . Robots Corrupted . | . . . Combat Hostiles . | . . . Parts Fried . | . . . Impact Corruptions . | . . . Robots Melted . | . . . Combat Hostiles . | . . . Parts Melted . | . . . Heat Transferred 74 | . . 74 Parts Sabotaged . | . . . Parts Stolen . | . . . Parts Stripped . | . . . Power Chain Reactions . | . . . Alert | -11 -10 -9 ------- Run | Yrd Mat Mat Maximum Alert Level 1 | . . 1 Low Security (%) 89 | 100 100 83 Level 1 10 | . . 16 Level 2 . | . . . Level 3 . | . . . Level 4 . | . . . Level 5 . | . . . High Security . | . . . Max Security . | . . . Peak Influence 249 | 5 35 249 Initial . | . . . Average 48 | . 6 72 Influence Increases 559 | 5 35 519 Destroy 0b10 Robot/C 200 | . 20 180 Destroy 0b10 Robot/NC 70 | 5 5 60 Destroy Leader 54 | . 10 44 Disable Machine 90 | . . 90 Destroy Structure 130 | . . 130 Lose Combat Pursuer 15 | . . 15 Influence Decreases 339 | 5 35 299 Time Decay 219 | 5 35 179 Lost Part 120 | . . 120 Squads Dispatched 2 | . 1 1 Investigation . | . . . Extermination . | . . . Reinforcement 2 | . 1 1 Assault . | . . . Garrison . | . . . Intercept . | . . . Searches Triggered . | . . . Construction Impeded . | . . . Haulers Reinforced . | . . . Active Scanning Responses . | . . . Cargo Convoy Interrupts . | . . . Stealth | -11 -10 -9 --------- Run | Yrd Mat Mat Distress Signals 1 | . . 1 Communications Jammed . | . . . Distress Signals . | . . . Times Spotted 22 | . 4 18 Peak Tracking Total 5 | . 3 5 Tactical Retreats 1 | . . 1 Traps | -11 -10 -9 ------- Run | Yrd Mat Mat Traps Triggered 3 | . 3 . Indirectly . | . . . Trap Hack Attempts . | . . . Triggered . | . . . Disarmed . | . . . Reprogrammed . | . . . Reused . | . . . Traps Extracted . | . . . Installed . | . . . Triggered . | . . . Machines | -11 -10 -9 ---------- Run | Yrd Mat Mat Machines Disabled 6 | . . 6 Max in Single Turn 2 | . . 2 Machines Repaired . | . . . Machines Dismantled . | . . . Machines Sabotaged . | . . . Overloaded Fab Kills . | . . . Hacking | -11 -10 -9 --------- Run | Yrd Mat Mat Machines Accessed . | . . . Terminals . | . . . Fabricators . | . . . Repair Stations . | . . . Recycling Units . | . . . Scanalyzers . | . . . Garrison Access . | . . . Total Hacks . | . . . Successful . | . . . Failed . | . . . Catastrophic . | . . . Database Lockouts . | . . . Manual . | . . . Terminals . | . . . Fabricators . | . . . Repair Stations . | . . . Recycling Units . | . . . Scanalyzers . | . . . Garrison Access . | . . . Terminal Hacks . | . . . Fabricator Hacks . | . . . Repair Station Hacks . | . . . Recycling Unit Hacks . | . . . Scanalyzer . | . . . Garrison Access Hacks . | . . . Unauthorized Hacks . | . . . Terminals . | . . . Fabricators . | . . . Repair Stations . | . . . Recycling Units . | . . . Scanalyzers . | . . . Garrison Access . | . . . Data Cores Recovered . | . . . Used . | . . . Hacking Detections . | . . . Full Trace Events . | . . . Feedback Events . | . . . Feedback Blocked . | . . . Robot Schematics Acquired . | . . . Robots Built . | . . . Authchips . | . . . Time . | . . . Total Robot Build Rating . | . . . Part Schematics Acquired . | . . . Parts Built . | . . . Authchips . | . . . Time . | . . . Total Part Build Rating . | . . . Part Studies Acquired . | . . . Parts Repaired . | . . . Time . | . . . Parts Recycled . | . . . Recycled Matter . | . . . Retrieved Matter . | . . . Retrieved Components . | . . . Parts Scanalyzed . | . . . Part Schematics Acquired . | . . . Parts Damaged . | . . . Bothacking | -11 -10 -9 ------------ Run | Yrd Mat Mat Used RIF Installer . | . . . Robots Hacked . | . . . Non-combat . | . . . Combat . | . . . Robot Hacks Applied . | . . . Relay Couplers Released . | . . . Fabnet Peak Effective % . | . . . Robots Rewired . | . . . Allies Hacked . | . . . Hacks Repelled . | . . . Allies | -11 -10 -9 -------- Run | Yrd Mat Mat Total Allies . | . . . Largest Group . | . . . Highest-Rated Group . | . . . Highest-Rated Ally . | . . . Total Orders . | . . . Ally Attacks . | . . . Total Damage . | . . . Kills . | . . . Allies Corrupted . | . . . Allies Melted . | . . . Intel | -11 -10 -9 ------- Run | Yrd Mat Mat Active Infowar (turns) 199 | 20 179 . Terrain 199 | 20 179 . Robot Analysis Total . | . . . Derelict Logs Recovered . | . . . Drone Launches . | . . . Drone Recoveries . | . . . Exploration | -11 -10 -9 ------------- Run | Yrd Mat Mat Turns Passed 898 | 95 232 571 Spaces Moved 331 | 61 79 191 Core 13 | 5 6 2 Treads . | . . . Legs 301 | 56 73 172 Wheels 17 | . . 17 Hover . | . . . Flight . | . . . Fastest Speed 50 | 50 120 110 Average Speed 226 | 114 258 249 Slowest Speed 800 | 120 800 750 Overloaded Moves . | . . . Propulsion Burnouts . | . . . Robots Hopped . | . . . Potential Cave-ins . | . . . Cave-ins Triggered . | . . . Exploration Rate (%) 15 | 6 16 23 Regions Visited 2 Branch Regions . Pre-discovered Areas . | . . . Known Exits Taken . | . . . Unknown Exits Taken 2 | 1 1 . Scrap Searched . | . . . Spaces Dug . | . . . Terrain Destroyed 150 | . . 150 Melee . | . . . Projectile . | . . . AOE 150 | . . 150 Terrain Rammed . | . . . Walls Destroyed . | . . . Machines Disabled . | . . . Actions | -11 -10 -9 --------- Run | Yrd Mat Mat Total 439 | 81 100 258 Wait 52 | 9 8 35 Move 329 | 60 78 191 Hop . | . . . Pick Up 8 | 2 3 3 Fast Attach 15 | 8 4 3 Attach 7 | . 1 6 Detach 1 | 1 . . Swap 2 | . 1 1 Drop 1 | . 1 . Fire 24 | 1 4 19 Melee . | . . . Ram . | . . . Kick . | . . . Crush . | . . . Escape Stasis . | . . . Rewire . | . . . Trap . | . . . Miscellaneous . | . . . Route ------- -11/Scrapyard -10/Materials -9/Materials History --------- Turn | Location | Event 2 | -11/Scrapyard | Met Revision 17 7 | -11/Scrapyard | Discovered new exit (range 14) 96 | -11/Scrapyard | Entered Materials 310 | -10/Materials | Discovered new exit (range 4) 320 | -10/Materials | Build established: Mutant 328 | -10/Materials | Entered another Materials area 328 | -9/Materials | Evolved 2 slots: Propulsion x2 888 | -9/Materials | Core integrity fell below 50% 896 | -9/Materials | Core integrity fell below 20% 899 | -9/Materials | Destroyed by Y-45 Defender with Heavy Assault Rifle Last Messages --------------- 00866_ K-01 Serf collects debris. 00874_ Ion Engine destroyed. 00874_ Destroyed Ion Engine. 00874_ Terminal disabled. 00876_ Cooling System destroyed. 00877_ Mni. Grenade Launcher destroyed. 00877_ Destroyed Mni. Grenade Launcher. 00877_ Rocket Launcher destroyed. 00877_ Destroyed Rocket Launcher. 00880_ Wheel destroyed. 00885_ Scanalyzer disabled. 00887_ The unstable cave ceiling collapses. 00888_ Y-45 Defender destroyed. 00888_ M-13 Machinist destroyed. 00889_ K-01 Serf collects debris. 00890_ K-01 Serf destroyed. 00893_ Particle Gun destroyed. 00897_ The unstable cave ceiling collapses. 00898_ K-01 Serf collects debris. 00898_ Acquired 22 matter. Map ----- +----------------------------------------------------+ | ?????????????????????????????????????????????????? | | ?????????????????????????????????????????????????? | | ?????????????????????????????????????????????????? | | ?????????????????????????????????????????????????? | | ?????????????????????????????????????????????????? | | ?????????????????????????????????????????????????? | | ?????????????????????????????????????????????????? | | ?????????????????????????????????????????????????? | | ?????????????????????????????????????????????????? | | ?????????????????????????????????????????????????? | | ?????????????????????? ? ????????????????????????? | | ????????????????????? ???????????????????????? | | ????????????????????? " ???????????????????????? | | ????????????????????? ???????????????????????? | | ????????????????????? ???????????????????????? | | ?????????????????????# #???????????????????????? | | ?????????????????????# #???????????????????????? | | ?????????????????????# #???????????????????????? | | ?????????????????????# #???????????????????????? | | ?????????????????????#^^ ########????????????????? | | ?????????????????????# # =!* ##???????????????? | | ?????????????????????# # =!* #???????????????? | | ????????????????????## ! =** #????????????????? | | ???????????########## #????????????????? | | ???????????# T" #????????????????? | | ???????????# @ """ #????????????????? | | ?????????????"T" [ % #####???????????????? | | ???????????# # #?? ????????????? | | ??????????########### * "" # ????????????? | | ????????? !%= Y""" + ????????????? | | ????????? YY# " #???????????????? | | ????????? ^ # Y #???????????????? | | ????????? [#???????????????? | | ????????? ^ ##???????????????? | | ??????????##### ^ k # ##???????????????? | | ??????????????#^ ^ #???????????????? | | ??????????????# "" # #???????????? | | ????########### " #??????????? | | ????# #^ " # #??????????? | | ????# # " #??????????? | | ????# %* #??????????? | | ????# %# ???????????? | | ????# ! ###???????????? | | ????#!! / #?????????????? | | ????#!! * # #?????????????? | | ????#! ##?????????????? | | ????##### # # #??????????????? | | ???????# #??????????????? | | ???????# # ### # ???????????????? | | ???????# # # # ?# ##???????????????? | +----------------------------------------------------+ Best States ------------- Heat Dissipation 50 Energy Generation 10 Energy Capacity 250 Matter Stores 300 Matter Capacity 300 Sight Range 16 Terrain Scan Range 16 Terrain Scan Density 10 Evasion (%) 55 Item Schematics ----------------- None Robot Schematics ------------------ None Fabricated ------------ Nothing Repaired ---------- Nothing Studied --------- None Alien Tech Used ----------------- None Achievements -------------- Let's See Who's Tougher You Again Challenges ------------ None Game ------ Seed ShockboltSniperNetwork Manual? 0 Play Time 00:23:16 Cumulative 3.7 hours Start 2026.01.25 @ 10:47:57 End 2026.01.25 @ 11:25:16 Sessions 1 Manual Loads 0 Difficulty Rogue Special Mode None Game No. 6 Rogue 6 Adventurer 0 Explorer 0 Win Type - Total 0 Types 0/0/0/0/0/0/0/0/0/0 Lore% 2 Gallery% 4 Achievement% 5 Wizard Run 0 Options --------- Layout 1 ASCII 0 Keyboard 1 Movement Numpad Keybinds 0 Fullscreen 2 Font 24/Smallcaps Map View 50x35 Zoom Use 41% Tactical HUD 1 Map Filters NONE Filters NONE Steam 1 RUN: d115c596-9b52-49fd-98e9-d392ae5c0ba9